[Event "Romanian Championship Open 2025"]
[Site "Craiova"]
[Date "2025.02.19"]
[Round "5.20"]
[White "Daianu, Cristian-Clement"]
[Black "Barbu, Simon-Alexandru"]
[Result "1-0"]
[Annotator "ChessBase"]
[ECO "B12"]
[WhiteElo "2214"]
[BlackElo "2023"]
[PlyCount "71"]
[EventDate "2025.02.12"]
[EventType "swiss"]
[EventCountry "ROU"]
[SourceTitle "playchess.com"]
[Source "ChessBase"]
[SourceQuality "1"]
[TimeControl "40/5400+30:900+30"]

1. e4 {[%emt 0:02:48]} c6 {[%emt 0:00:19]} 2. d4 {[%emt 0:00:14]} d5 {[%emt 0:00:04]} 3. f3 {[%emt 0:00:39]} dxe4 {[%emt 0:01:46]} 4. fxe4 {[%emt 0:01:41]} e5 {[%emt 0:00:05]} 5. Nf3 {[%emt 0:00:37]} Bg4 {[%emt 0:00:05]} 6. c3 {[%emt 0:01:53]} Nd7 {[%emt 0:01:31]} 7. Bd3 {[%emt 0:00:30]} Bd6 {[%emt 0:00:37]} 8. O-O {[%emt 0:01:52]} Ngf6 {[%emt 0:00:10]} 9. Nbd2 {[%emt 0:03:24]} b5 {[%emt 0:01:38]} 10. Qe1 {[%emt 0:24:16]} O-O {[%emt 0:05:22]} 11. Qh4 {[%emt 0:00:47]} Rb8 {[%emt 1:24:23]} 12. Kh1 {[%emt 0:06:37]} c5 {[%emt 0:00:00]} 13. a4 {[%emt 0:03:17]} a6 {[%emt 0:00:00]} 14. axb5 {[%emt 0:01:32]} axb5 {[%emt 0:00:00]} 15. Ra6 {[%emt 0:00:50]} Rb6 {[%emt 0:00:00]} 16. Bxb5 {[%emt 0:07:44]} Rxa6 {[%emt 0:00:00]} 17. Bxa6 {[%emt 0:00:04]} cxd4 {[%emt 0:00:00]} 18. cxd4 {[%emt 0:03:47]} Qb6 {[%emt 0:00:00]} 19. Bd3 {[%emt 0:10:33]} Rc8 {[%emt 0:00:00]} 20. dxe5 {[%emt 0:14:16]} Nxe5 {[%emt 0:00:00]} 21. Nxe5 {[%emt 0:00:15]} Bxe5 {[%emt 0:00:00]} 22. Nc4 {[%emt 0:01:03]} Qe6 {[%emt 0:00:00]} 23. Nxe5 {[%emt 0:13:21]} Qxe5 {[%emt 0:00:00]} 24. Bg5 {[%emt 0:00:00]} Qd6 {[%emt 0:03:56]} 25. Bxf6 {[%emt 0:00:00]} Qxd3 {[%emt 0:00:19]} 26. Re1 {[%emt 0:00:00]} Qd2 {[%emt 0:01:29]} 27. Bc3 {[%emt 0:00:00]} g5 {[%emt 0:01:08]} 28. Qg3 {[%emt 0:00:00]} Qf4 {[%emt 0:00:01]} 29. Qd3 {[%emt 0:00:00]} Rf8 {[%emt 0:00:20]} 30. Rf1 {[%emt 0:00:00]} Qc7 {[%emt 0:01:03]} 31. Qd4 {[%emt 0:00:15]} f6 {[%emt 0:00:01]} 32. h3 {[%emt 0:01:22]} Be2 {[%emt 0:00:55]} 33. Rxf6 {[%emt 0:00:22]} Rd8 {[%emt 0:00:03]} 34. Rg6+ {[%emt 0:00:45]} Kf8 {[%emt 0:01:19]} 35. Qf6+ {[%emt 0:00:44]} Ke8 {[%emt 0:00:08]} 36. Rg8+ {[%emt 0:00:05]} 1-0

[Event "Romanian Championship Open 2025"]
[Site "Craiova"]
[Date "2025.02.19"]
[Round "5.21"]
[White "Leu, Dragos Stefan"]
[Black "Vasile, Matei"]
[Result "1-0"]
[Annotator "ChessBase"]
[ECO "B38"]
[WhiteElo "2180"]
[BlackElo "1993"]
[PlyCount "73"]
[EventDate "2025.02.12"]
[EventType "swiss"]
[EventCountry "ROU"]
[SourceTitle "playchess.com"]
[Source "ChessBase"]
[SourceQuality "1"]
[TimeControl "40/5400+30:900+30"]

1. e4 {[%emt 0:00:02]} c5 {[%emt 0:00:03]} 2. Nf3 {[%emt 0:00:06]} Nc6 {[%emt 0:00:02]} 3. d4 {[%emt 0:00:07]} cxd4 {[%emt 0:00:03]} 4. Nxd4 {[%emt 0:00:02]} g6 {[%emt 0:00:04]} 5. c4 {[%emt 0:00:26]} Bg7 {[%emt 0:00:13]} 6. Be3 {[%emt 0:00:07]} d6 {[%emt 0:00:23]} 7. Nc3 {[%emt 0:00:22]} Bd7 {[%emt 0:00:16]} 8. Be2 {[%emt 0:00:46]} Nf6 {[%emt 0:00:08]} 9. f3 {[%emt 0:01:19]} Nxd4 {[%emt 0:03:34]} 10. Qxd4 {[%emt 0:01:42]} O-O {[%emt 0:01:56]} 11. Qd2 {[%emt 0:00:16]} a5 {[%emt 0:01:56]} 12. b3 {[%emt 0:02:17]} Bc6 {[%emt 0:01:47]} 13. Rc1 {[%emt 0:10:59]} Nd7 {[%emt 0:00:56]} 14. h4 {[%emt 0:03:06]} h5 {[%emt 0:07:03]} 15. O-O {[%emt 0:05:14]} Nc5 {[%emt 0:09:24]} 16. Rfd1 {[%emt 0:17:45]} Qc8 {[%emt 0:11:18]} 17. Nd5 {[%emt 0:06:37]} Bxd5 {[%emt 0:03:58]} 18. cxd5 {[%emt 0:07:29]} b6 {[%emt 0:02:07]} 19. Bb5 {[%emt 0:03:03]} Ra7 {[%emt 0:00:59]} 20. Rc4 {[%emt 0:06:03]} Qb8 {[%emt 0:01:36]} 21. Qc2 {[%emt 0:01:34]} f5 {[%emt 0:10:02]} 22. a3 {[%emt 0:06:09]} fxe4 {[%emt 0:02:58]} 23. fxe4 {[%emt 0:07:29]} Kh7 {[%emt 0:03:07]} 24. Rc1 {[%emt 0:05:01]} Bh6 {[%emt 0:05:09]} 25. Bxh6 {[%emt 0:03:31]} Kxh6 {[%emt 0:00:01]} 26. b4 {[%emt 0:00:00]} axb4 {[%emt 0:00:09]} 27. axb4 {[%emt 0:00:02]} Na6 {[%emt 0:03:52]} 28. Ra1 {[%emt 0:05:04]} Qb7 {[%emt 0:05:12]} 29. Qa2 {[%emt 0:00:32]} e5 {[%emt 0:10:48]} 30. Bxa6 {[%emt 0:01:23]} Qf7 {[%emt 0:00:02]} 31. Qd2+ {[%emt 0:01:05]} Kg7 {[%emt 0:00:07]} 32. Rac1 {[%emt 0:00:24]} Re7 {[%emt 0:03:43]} 33. Rc6 {[%emt 0:01:18]} Qf6 {[%emt 0:00:27]} 34. Rf1 {[%emt 0:00:18]} Qxh4 {[%emt 0:00:54]} 35. Rxf8 {[%emt 0:00:05]} Kxf8 {[%emt 0:01:37]} 36. Qh6+ {[%emt 0:00:15]} Ke8 {[%emt 0:00:06]} 37. Qxg6+ {[%emt 0:00:32]} 1-0

[Event "Romanian Championship Open 2025"]
[Site "Craiova"]
[Date "2025.02.20"]
[Round "6.1"]
[White "Gavrilescu, David"]
[Black "Magold, Filip"]
[Result "1-0"]
[Annotator "TA"]
[ECO "B07"]
[WhiteElo "2543"]
[BlackElo "2431"]
[PlyCount "89"]
[EventDate "2025.02.12"]
[EventType "swiss"]
[EventCountry "ROU"]
[SourceTitle "playchess.com"]
[Source "ChessBase"]
[SourceQuality "1"]
[TimeControl "40/5400+30:900+30"]

{[%evp 10,89,52,37,64,22,28,26,26,11,32,-5,-13,-37,-47,-42,-52,-62,-47,-75,-69,-75,-68,-89,-75,-89,-45,-60,-42,-31,-14,-45,-47,-59,-49,-57,-61,-184,0,-13,0,0,0,0,0,-49,-77,-48,-29,-33,-33,-34,-21,-25,-27,-22,-12,-20,0,0,0,0,15,15,14,12,81,86,87,91,1872,1764,1817,1605,29980,29981,29975,4694,29985,29986,29982,29983]} 1. e4 {[%emt 0:00:19]} d6 {[%emt 0:00:19]} 2. d4 {[%emt 0:00:24]} Nf6 {[%emt 0:00:09]} 3. Nc3 {[%emt 0:00:37]} g6 {[%emt 0:00:16]} 4. Be3 {[%emt 0:00:48]} c6 {[%emt 0:00:14]} 5. h3 {[%emt 0:01:34]} Nbd7 {[%emt 0:00:47]} 6. f4 {[%emt 0:05:26]} b5 {[%emt 0:00:17] B07: Pirc Defence: Miscellaneous Systems.} 7. Bd3 {[%emt 0:11:07]} b4 {[%emt 0:04:15]} 8. Nce2 {[%emt 0:01:50]} Bb7 {[%emt 0:04:59] White has an edge.} 9. c3 $146 {[%emt 0:09:12]} ({Predecessor:} 9. c4 bxc3 10. bxc3 c5 11. d5 Bg7 12. Nf3 O-O 13. c4 Qa5+ 14. Bd2 Qa3 15. Bc3 Nxd5 16. Bxg7 {1-0 Caruana,F (2805)-Onyshchuk,V (2619) Titled Tuesday intern op 21st May Late blitz 2024 (7)}) 9... Bg7 {[%emt 0:15:45]} 10. cxb4 {[%emt 0:15:06]} a5 {[%emt 0:14:55]} 11. Nf3 {[%emt 0:13:54]} axb4 {[%emt 0:00:56]} 12. O-O {[%emt 0:00:09]} O-O {[%emt 0:01:45]} 13. Ng3 {[%emt 0:06:43]} c5 {[%emt 0:05:44]} 14. Re1 {[%emt 0:05:54]} cxd4 {[%emt 0:01:22][%csl Od4] Black has a strong passed pawn} 15. Bxd4 {[%emt 0:00:15]} Nc5 {[%emt 0:08:03]} (15... e5 16. fxe5 Nxe5 17. Nxe5 dxe5 18. Bc5 $15) 16. Bc2 {[%emt 0:04:19]} Qc7 {[%emt 0:04:21]} 17. Qd2 {[%emt 0:01:59]} Ne6 {[%emt 0:03:33]} 18. Be3 {[%emt 0:00:34][%cal Oa1c1]} Rfc8 {[%emt 0:00:31]} 19. Rac1 {[%emt 0:01:47]} Qa5 {[%emt 0:13:10][%cal Oe6c5]} (19... Rxa2 $2 20. Bb3 (20. Qxb4 Nc5 $11) 20... Qa5 21. Rxc8+ Bxc8 22. Bxa2 Qxa2 23. f5 $18 (23. Qxb4 Qa6 $18)) 20. Bb1 {[%emt 0:04:29]} Nc5 {[%emt 0:02:00][%cal Rc5e4]} (20... Rxc1 21. Rxc1 b3 22. axb3 Qxd2 23. Nxd2 Bh6) 21. Bd4 {[%emt 0:00:26]} Bh6 {[%emt 0:00:32][%cal Oe7e5]} 22. Ng5 {[%emt 0:02:12]} Nfd7 {[%emt 0:04:39]} 23. Nf5 {[%emt 0:07:35]} Bf8 $2 {[%emt 0:07:56]} ({Black should try} 23... gxf5 $19 24. exf5 Bxg5 25. fxg5 b3 26. Qxa5 (26. Bc3 $2 Qb6 $17) 26... Rxa5 27. axb3 Nxb3) 24. e5 {[%emt 0:01:04][%cal Oe5d6]} dxe5 {[%emt 0:01:27]} 25. fxe5 {[%emt 0:00:05]} Ne6 {[%emt 0:00:15] Wards off Qf4} (25... gxf5 26. Bxf5 Bg7 (26... h6 $2 27. e6 $18) 27. Bxh7+ Kh8 28. Qf2 $18 (28. Nxf7+ $2 Kxh7 29. Qf4 Qxa2 $19)) 26. Nxe6 {[%emt 0:02:12]} fxe6 {[%emt 0:00:01]} 27. Ng3 {[%emt 0:00:35]} (27. Nh6+ $11 {was preferable.} Bxh6 28. Qxh6 Rxc1 29. Qxc1 (29. Rxc1 Qd5 $11)) 27... Rxc1 $15 {[%emt 0:00:22]} 28. Rxc1 {[%emt 0:00:13]} Rd8 {[%emt 0:01:09][%csl Oe5] Black attacks a weakness} 29. Qe3 {[%emt 0:02:10]} Bg7 {[%emt 0:00:45]} 30. Re1 {[%emt 0:01:42] [#]} Bxe5 $1 {[%emt 0:01:42]} 31. Bxe5 {[%emt 0:00:27]} Qxe5 {[%emt 0:00:06]} 32. Be4 {[%emt 0:00:20]} Bxe4 {[%emt 0:00:54]} 33. Nxe4 {[%emt 0:00:02]} (33. Qxe4 {simplifies} Qxe4 34. Rxe4 b3 35. axb3 Nc5 36. Re3) 33... Qxb2 {[%emt 0:01:38]} 34. Ng5 {[%emt 0:00:37]} Nf8 {[%emt 0:02:07]} 35. Nxe6 {[%emt 0:00:51]} Rd2 {[%emt 0:00:33]} 36. Nxf8 {[%emt 0:00:44] Black must now prevent Qe6+.} Rxg2+ {[%emt 0:00:27]} 37. Kf1 {[%emt 0:00:00]} Qxa2 {[%emt 0:00:31]} (37... Kxf8 $2 {too greedy.} 38. Qf3+ (38. Qxe7+ Kg8 $18) 38... Kg8 39. Qxg2 $18) (37... Rh2 $11 {remains equal.} 38. Qe6+ Kh8 (38... Kxf8 $2 39. Qxe7+ Kg8 40. Qd8+ Kg7 41. Qc7+ Kh6 42. Qf4+ Kh5 43. Re5+ $18) 39. Qe5+ (39. Qxe7 $2 Rh1#) 39... Qxe5 40. Rxe5 Kg8) 38. Ne6 $1 $16 {[%emt 0:01:09] Really sharp!} Rc2 {[%emt 0:00:32] [#]} ({Don't blunder} 38... Rh2 $2 39. Qf3 $18) 39. Qe5 {[%emt 0:00:35][%csl Ge6][%cal Re5g7] Repels Qd5} Qa6+ $2 {[%emt 0:00:29][%mdl 8192]} (39... Qc4+ $16 40. Kg1 Qc3 41. Qb8+ Qc8 42. Qxb4 Qa8) 40. Kg1 $18 {[%emt 0:00:00][%csl Ge6][%cal Re5g7]} Qb6+ {[%emt 0:00:00] [#]} 41. Re3 $1 {[%emt 0:03:29][%csl Ge6][%cal Re5g7]} Kf7 {[%emt 0:10:41]} 42. Ng5+ {[%emt 0:00:40]} Kg8 {[%emt 0:00:05]} 43. Qd5+ {[%emt 0:00:09]} (43. Qxe7 $142 Rc1+ 44. Kf2 Rc2+ 45. Ke1 Rc1+ 46. Kd2 Rc7 47. Qe8+ (47. Qd8+ Kg7 $18) 47... Kg7 48. Ne6+ Qxe6 49. Qxe6) 43... e6 {[%emt 0:00:08]} 44. Qa8+ {[%emt 0:00:30]} Kg7 {[%emt 0:00:13]} 45. Nxe6+ {[%emt 0:00:07] Weighted Error Value: White=0.28 (precise) /Black=0.62  Loses game:     	---       	Black=1      Missed win:     	---       	Black=1      Mistake:       	White=2     	Black=1      Inaccurate:     	White=4     	Black=1      OK:         	White=9     	Black=12     Best:        	White=4     	Black=4      Strong:       	White=1     	---} 1-0

[Event "Romanian Championship Open 2025"]
[Site "Craiova"]
[Date "2025.02.20"]
[Round "6.2"]
[White "Sachilaru, Alexandru"]
[Black "Lupulescu, Constantin"]
[Result "1/2-1/2"]
[Annotator "TA"]
[ECO "B12"]
[WhiteElo "2305"]
[BlackElo "2603"]
[PlyCount "98"]
[EventDate "2025.02.12"]
[EventType "swiss"]
[EventCountry "ROU"]
[SourceTitle "playchess.com"]
[Source "ChessBase"]
[SourceQuality "1"]
[TimeControl "40/5400+30:900+30"]

{[%evp 11,98,29,30,31,29,31,37,42,41,33,56,22,26,11,30,29,31,-6,0,-25,-12,-16,-24,-20,-14,-15,-24,-10,-21,-26,-22,-40,-46,-35,-33,-63,-60,-114,-103,-108,-110,-109,-94,-132,-132,-100,-106,-158,-158,-176,-160,-168,-161,-161,-118,-118,-131,-122,-103,-100,-99,-97,0,0,0,0,0,0,0,0,0,0,0,0,0,0,0,0,0,0,0,0,0,0,0,0,0,0,0]} 1. e4 {[%emt 0:00:08]} c6 {[%emt 0:00:04]} 2. d4 {[%emt 0:00:17]} d5 {[%emt 0:00:05]} 3. e5 {[%emt 0:00:07]} Bf5 {[%emt 0:00:06]} 4. Nf3 {[%emt 0:00:22]} e6 {[%emt 0:00:07]} 5. Be2 {[%emt 0:00:28]} Ne7 {[%emt 0:00:43][%cal Bg8e7,Be7g6,Bg6h4][%mdl 32]} 6. O-O {[%emt 0:00:29]} h6 {[%emt 0:00:53]} 7. Nbd2 {[%emt 0:00:26] B12: Caro-Kann: Advance Variation.} Nd7 {[%emt 0:00:44]} 8. Nb3 {[%emt 0:02:20]} Bh7 {[%emt 0:15:05]} 9. a4 $1 {[%emt 0:02:20][%mdl 4] White is slightly better. is currently scoring better than 9.Bd2.} Ng6 {[%emt 0:01:48]} 10. Be3 {[%emt 0:07:33]} Be7 {[%emt 0:09:31]} 11. Ne1 {[%emt 0:04:27]} c5 {[%emt 0:02:47]} 12. c3 {[%emt 0:07:06]} O-O $146 {[%emt 0:03:02]} (12... c4 13. Nd2 Nh4 14. b3 cxb3 15. Qxb3 Rb8 16. f4 O-O 17. Bf2 Qa5 18. g3 Ng6 {½-½ Nanjo,R (2344)-Juarez Flores,C (2425) Olympiad-41 Tromsoe 2014 (5.1)}) 13. f4 {[%emt 0:03:59][%cal Rb3c5]} Rc8 {[%emt 0:00:58]} 14. g4 {[%emt 0:05:41]} Nh4 {[%emt 0:01:31]} 15. dxc5 {[%emt 0:05:12]} Nxc5 {[%emt 0:02:15]} (15... Be4 {is more complex.} 16. Nf3 Bxf3 17. Bxf3 g5) 16. Nxc5 {[%emt 0:01:17]} Bxc5 {[%emt 0:00:12]} 17. Bxc5 {[%emt 0:01:21]} Rxc5 {[%emt 0:00:20]} 18. Qd4 {[%emt 0:00:38]} Qb6 {[%emt 0:07:43]} 19. Nf3 {[%emt 0:10:48]} Nxf3+ {[%emt 0:14:00]} 20. Bxf3 {[%emt 0:00:16]} Bc2 {[%emt 0:00:28][%cal Of8c8]} 21. Be2 {[%emt 0:10:34]} Rfc8 {[%emt 0:02:07]} 22. Bb5 {[%emt 0:06:49]} Bb3 {[%emt 0:01:19]} 23. Ra3 {[%emt 0:11:35]} Bc4 {[%emt 0:00:25]} 24. Bxc4 {[%emt 0:00:28]} (24. b4 $15 R5c7 25. Qxb6 axb6 26. Rf3) 24... dxc4 $17 {[%emt 0:12:09]} 25. Qf2 {[%emt 0:00:18]} Rd8 {[%emt 0:00:23]} 26. Raa1 {[%emt 0:01:24]} Qc6 {[%emt 0:01:12]} 27. Rad1 {[%emt 0:05:03]} Rd3 {[%emt 0:00:31]} 28. Rxd3 {[%emt 0:01:49]} cxd3 {[%emt 0:00:07][%mdl 4096] Endgame KQR-KQR} 29. Rd1 {[%emt 0:00:33]} (29. g5 $142) 29... Qxa4 {[%emt 0:11:25]} 30. Rxd3 {[%emt 0:00:12]} Rc4 {[%emt 0:00:09]} 31. Rf3 {[%emt 0:00:52]} g5 $1 {[%emt 0:00:08]} 32. Qd2 {[%emt 0:02:44]} Kg7 {[%emt 0:01:46][%cal Rc4f4]} (32... gxf4 $6 33. Qd8+ Kh7 34. g5 $11) 33. fxg5 {[%emt 0:03:50]} Rxg4+ {[%emt 0:00:08]} 34. Rg3 {[%emt 0:03:21]} hxg5 {[%emt 0:00:29]} 35. b4 {[%emt 0:00:25] [#]} Rxg3+ {[%emt 0:06:27]} (35... Qa1+ $6 36. Kg2 Rxg3+ 37. hxg3 $11) 36. hxg3 {[%emt 0:00:04] [#] KQ-KQ. Black is a pawn up.} f6 {[%emt 0:00:33]} ({Black should try} 36... Kh6 $1 $17 {Strongly threatening ...Qb5.} 37. Kh2 Qb5) 37. Qd8 $11 {[%emt 0:01:29] The position is equal.} Qa1+ {[%emt 0:00:09]} (37... fxe5 38. Qxg5+ Kf7 39. Qxe5) 38. Kg2 {[%emt 0:00:41]} Qb2+ {[%emt 0:00:22]} (38... Qxc3 39. Qxf6+ Kh7 40. Qf7+ (40. Qxg5 Qc2+ 41. Kh3 Qf5+ 42. Qxf5+ exf5 $11) 40... Kh6 41. Qxe6+ (41. Qxb7 Qc2+ 42. Kf1 Qc4+ 43. Kf2 Qd4+ 44. Kg2 Kg6 $15) 41... Kg7 42. Qf6+ Kh7 43. Qf5+ (43. Qxg5 Qxb4 44. Qf5+ Kg8 $14) 43... Kh6 44. Qf8+ Kg6 45. Qf6+ Kh7 46. Kh3 $16) 39. Kh3 {[%emt 0:00:15] and Qe7+ should not be overlooked} g4+ {[%emt 0:00:19]} (39... Qxc3 $2 {perishes.} 40. Qxf6+ Kh7 41. Qf7+ (41. Qxe6 Qf3 $11) (41. Qxg5 Qxb4 42. Qf6 Qc4 $11) 41... Kh8 42. Qh5+ (42. Qxe6 Qxb4 43. Qf7 Qd4 $14) (42. Qxb7 Qxe5 43. Qa8+ Kg7 $11) 42... Kg7 43. Qxg5+ Kh7 44. Qe7+ Kh8 45. Qxb7 $18 (45. Qxe6 Qxb4 46. Qf6+ Kg8 $16)) 40. Kxg4 {[%emt 0:00:00]} Qe2+ {[%emt 0:00:00]} ({Weaker is} 40... Qxc3 41. Qe7+ (41. Qxf6+ Kh7 $18) 41... Kh6 42. Qxf6+ (42. Qxe6 Qd4+ 43. Kf3 Qc3+ 44. Ke4 Qe1+ 45. Kf3 Qh1+ 46. Kf2 Qh2+ 47. Kf3 Qh1+ 48. Kf2 Qh2+ 49. Kf3 Qh1+ $11) 42... Kh7 43. Qf7+ (43. Qxe6 Qxb4+ 44. Kh5 Qf8 $18) 43... Kh8 44. Qxe6 $16 (44. Qxb7 Qxe5 45. Qf7 Qd6 $11)) 41. Kh3 {[%emt 0:02:09]} Qh5+ {[%emt 0:07:22]} 42. Kg2 {[%emt 0:00:06]} Qe2+ {[%emt 0:00:15]} (42... fxe5 43. Qe7+ Qf7 44. Qg5+ Kh7 45. Qxe5 $16) 43. Kh3 {[%emt 0:00:04]} Qh5+ {[%emt 0:00:04]} 44. Kg2 {[%emt 0:00:04]} Qxe5 {[%emt 0:00:04]} (44... fxe5 45. Qe7+ Qf7 46. Qg5+ Qg6 47. Qxe5+ Kf7 48. Qc7+ Kf6 49. Qd8+ (49. Qxb7 Qc2+ 50. Kh3 Qxc3 $11) 49... Kf7 50. Kf3 $14) 45. Qe7+ {[%emt 0:02:30]} Kg6 {[%emt 0:01:05]} 46. Qe8+ {[%emt 0:00:28]} Kg7 {[%emt 0:07:50]} 47. Qe7+ {[%emt 0:00:09]} Kg6 {[%emt 0:00:50]} 48. Qe8+ {[%emt 0:00:06]} Kg7 {[%emt 0:01:56]} 49. Qe7+ {[%emt 0:00:06]} Kg6 {[%emt 0:00:02] Black had all chances to win.   Weighted Error Value: White=0.08 (flawless) /Black=0.05 (flawless)   Mistake:       	White=2     	Black=1      Inaccurate:     	White=4     	---        OK:         	White=18    	Black=15     Best:        	White=4     	Black=2      Strong:       	---       	Black=1} 1/2-1/2

[Event "Romanian Championship Open 2025"]
[Site "Craiova"]
[Date "2025.02.20"]
[Round "6.3"]
[White "Filip, Lucian-Ioan"]
[Black "Sava, Robert-Gabriel"]
[Result "1/2-1/2"]
[Annotator "RC"]
[ECO "E04"]
[WhiteElo "2328"]
[BlackElo "2183"]
[PlyCount "23"]
[EventDate "2025.02.12"]
[EventType "swiss"]
[EventCountry "ROU"]
[SourceTitle "playchess.com"]
[Source "ChessBase"]
[SourceQuality "1"]
[TimeControl "40/5400+30:900+30"]

1. d4 {[%emt 0:00:07]} Nf6 {[%emt 0:00:11]} 2. c4 {[%emt 0:00:15]} e6 {[%emt 0:00:10]} 3. Nf3 {[%emt 0:01:28]} d5 {[%emt 0:00:28]} 4. g3 {[%emt 0:00:27]} dxc4 {[%emt 0:00:34]} 5. Bg2 {[%emt 0:00:07]} Nc6 {[%emt 0:00:18]} 6. Qa4 {[%emt 0:03:44]} Bb4+ {[%emt 0:00:56]} 7. Bd2 {[%emt 0:00:47]} Nd5 {[%emt 0:01:36]} 8. Qb5 {[%emt 0:12:16]} Bxd2+ {[%emt 0:00:11]} 9. Nbxd2 {[%emt 0:00:05]} c3 {[%emt 0:00:04]} 10. bxc3 {[%emt 0:00:07]} Nxc3 {[%emt 0:00:06]} 11. Qd3 {[%emt 0:01:19]} Nd5 {[%emt 0:00:17]} 12. O-O {[%emt 0:02:24]} 1/2-1/2

[Event "Romanian Championship Open 2025"]
[Site "Craiova"]
[Date "2025.02.20"]
[Round "6.4"]
[White "Serban, Cristian-Stefan"]
[Black "Ilinca, Felix-Antonio"]
[Result "1/2-1/2"]
[Annotator "RC"]
[ECO "E11"]
[WhiteElo "2295"]
[BlackElo "2412"]
[PlyCount "50"]
[EventDate "2025.02.12"]
[EventType "swiss"]
[EventCountry "ROU"]
[SourceTitle "playchess.com"]
[Source "ChessBase"]
[SourceQuality "1"]
[TimeControl "40/5400+30:900+30"]

1. d4 {[%emt 0:00:35]} d5 {[%emt 0:00:27]} 2. c4 {[%emt 0:00:10]} e6 {[%emt 0:00:20]} 3. Nf3 {[%emt 0:00:06]} Nf6 {[%emt 0:00:45]} 4. g3 {[%emt 0:00:10]} Bb4+ {[%emt 0:00:50]} 5. Bd2 {[%emt 0:00:07]} a5 {[%emt 0:00:29]} 6. Bg2 {[%emt 0:00:06]} O-O {[%emt 0:00:40]} 7. Qc2 {[%emt 0:00:07]} c5 {[%emt 0:00:48]} 8. cxd5 {[%emt 0:00:06]} cxd4 {[%emt 0:00:38]} 9. Nxd4 {[%emt 0:00:05]} Qb6 {[%emt 0:00:36]} 10. e3 {[%emt 0:00:05]} exd5 {[%emt 0:00:30]} 11. O-O {[%emt 0:00:05]} Nc6 {[%emt 0:00:43]} 12. Nxc6 {[%emt 0:00:06]} bxc6 {[%emt 0:00:10]} 13. Rc1 {[%emt 0:00:04]} Rb8 {[%emt 0:01:40]} 14. Nc3 {[%emt 0:00:13]} h5 {[%emt 0:01:24]} 15. Na4 {[%emt 0:00:07]} Qd8 {[%emt 0:04:27]} 16. Bxb4 {[%emt 0:00:17]} Rxb4 {[%emt 0:00:28]} 17. a3 {[%emt 0:00:03]} Rc4 {[%emt 0:03:13]} 18. Qb3 {[%emt 0:00:27]} Rxc1+ {[%emt 0:06:33]} 19. Rxc1 {[%emt 0:00:26]} h4 {[%emt 0:12:15]} 20. Nc5 {[%emt 0:01:06]} Re8 {[%emt 0:06:17]} 21. Qa4 {[%emt 0:15:41]} Qb6 {[%emt 0:11:08]} 22. b4 {[%emt 0:05:53]} axb4 {[%emt 0:07:42]} 23. Qxb4 {[%emt 0:00:11]} Qxb4 {[%emt 0:01:11]} 24. axb4 {[%emt 0:00:05]} hxg3 {[%emt 0:06:00]} 25. hxg3 {[%emt 0:00:20]} Bf5 {[%emt 0:01:45]} 1/2-1/2

[Event "Romanian Championship Open 2025"]
[Site "Craiova"]
[Date "2025.02.20"]
[Round "6.5"]
[White "Jianu, Vlad-Cristian"]
[Black "Nastase, Robert-Paul"]
[Result "1/2-1/2"]
[Annotator "TA"]
[ECO "A84"]
[WhiteElo "2467"]
[BlackElo "2259"]
[PlyCount "48"]
[EventDate "2025.02.12"]
[EventType "swiss"]
[EventCountry "ROU"]
[SourceTitle "playchess.com"]
[Source "ChessBase"]
[SourceQuality "1"]
[TimeControl "40/5400+30:900+30"]

{[%evp 15,48,36,23,38,28,30,58,60,52,37,33,13,56,37,39,12,17,8,14,20,20,20,24,13,42,0,0,0,0,0,0,0,0,0,0]} 1. d4 {[%emt 0:00:03]} d5 {[%emt 0:06:14]} 2. Nf3 {[%emt 0:00:31]} e6 {[%emt 0:00:05]} 3. c4 {[%emt 0:00:14]} c6 {[%emt 0:00:04]} 4. e3 {[%emt 0:00:32]} f5 {[%emt 0:00:05]} 5. Bd3 {[%emt 0:00:15]} Nf6 {[%emt 0:00:04]} 6. O-O {[%emt 0:00:10]} Bd6 {[%emt 0:00:02]} 7. b3 {[%emt 0:00:07]} Qe7 {[%emt 0:00:04]} 8. Bb2 {[%emt 0:00:10] 8.Bb2 has become a bit dusty these days.} O-O {[%emt 0:00:09]} 9. Nc3 {[%emt 0:00:34] A84: Dutch Defence: 2 c4 Miscellaneous.} Ne4 {[%emt 0:10:26]} 10. Ne2 {[%emt 0:00:25]} Bd7 {[%emt 0:02:43]} 11. Ne5 {[%emt 0:04:39] White is slightly better.} (11. c5 $5 Bc7 $8 12. b4 $14) 11... Be8 {[%emt 0:00:06]} 12. Rc1 {[%emt 0:00:15]} Nd7 {[%emt 0:01:48]} 13. f3 {[%emt 0:01:22]} Ng5 {[%emt 0:00:15]} (13... Qg5 $5) 14. Rc2 $146 {[%emt 0:08:42]} ({Predecessor:} 14. Nf4 Nf7 15. cxd5 exd5 16. Bxf5 Nfxe5 17. dxe5 Bxe5 18. Bxe5 Qxe5 19. Be6+ Kh8 20. Bxd7 Qxe3+ {0-1 Lisjak,Z (2209)-Korneev,S (2187) Titled Tuesday intern op 28th Jan Early blitz 2025 (1)}) 14... Nf7 {[%emt 0:00:26]} 15. Qa1 {[%emt 0:02:06]} Nfxe5 {[%emt 0:13:48]} 16. dxe5 {[%emt 0:00:11]} Bc5 {[%emt 0:00:03]} 17. Bd4 {[%emt 0:02:59]} dxc4 {[%emt 0:03:48]} 18. Bxc4 {[%emt 0:02:43]} Bf7 {[%emt 0:03:29]} 19. Rd1 {[%emt 0:35:58]} Rad8 {[%emt 0:01:14]} 20. Rcd2 {[%emt 0:00:57]} Bb4 {[%emt 0:06:31] The position is equal.} 21. Bc3 {[%emt 0:00:37] [#]} Bc5 {[%emt 0:00:13]} 22. Bd4 {[%emt 0:00:47]} Bb4 {[%emt 0:00:05]} 23. Bc3 {[%emt 0:01:01] Bxb4 is the strong threat.} Bc5 {[%emt 0:00:04]} 24. Bd4 {[%emt 0:00:04]} Bb4 {[%emt 0:00:03] Weighted Error Value: White=0.09 (flawless) /Black=0.07 (flawless)   Inaccurate:     	White=2     	Black=3      OK:         	White=6     	Black=12     Best:        	White=1     	---} 1/2-1/2